Workbook

Sheet WA Natural Gas - Sched 192
D4: GEN SERVICE | E4: LRG GEN SVC | F4: INTERRUPTIBLE | G4: TRANSPORT | H4: TRANSPORT
A5: Source | C5: TOTAL | D5: SCHEDULE 101&102 | E5: SCH. 111,112&116 | F5: SCH. 131&132 | G5: SCHEDULE 146 | H5: SCHEDULE 148
A7: Forecast | B7: Total Annual Therms | C7: =SUM(D7:H7) -> 231835507.8 | D7: =SUM('Revenue By Month'!G4:R4) -> 136079643.5 | E7: =SUM('Revenue By Month'!G5:R5) -> 61164730.75 | F7: =SUM('Revenue By Month'!G6:R6) -> 2519394.576 | G7: =SUM('Revenue By Month'!G7:R7) -> 32071739
B9: Present LIRAP Rates | D9: 0.02929 | E9: 0.02456 | F9: 0.02156 | G9: 0.00118
B11: Present Gross LIRAP Revenue | C11: =SUM(D11:G11) -> 5580141.343 | D11: =D7*D9 -> 3985772.757 | E11: =E7*E9 -> 1502205.787 | F11: =F7*F9 -> 54318.14706 | G11: =G7*G9 -> 37844.65202
A13: UG-220054 | B13: Base Revenue | C13: =SUM(D13:G13) -> 121156640.5 | D13: ='Base Revenue'!F14*1000 -> 95552177.95 | E13: ='Base Revenue'!F15*1000 -> 21347859.18 | F13: ='Base Revenue'!F16*1000+619409 -> 859088.85 | G13: =('Base Revenue'!F17*1000-291000) -> 3397514.546
B15: Percentage of Current Base Volumetric Revenue | C15: =SUM(D15:F15) -> 1 | D15: =D13/($C$13-$G$13) -> 0.811420577 | E15: =E13/($C$13-$G$13) -> 0.1812841171 | F15: =F13/($C$13-$G$13) -> 0.007295305929 | G15: =G13/$C$13 -> 0.02804233042
B17: Revenue Requirement | C17: 10228865.82
B18: Less Sch 146 | C18: =G21 -> 33975.14546
B19: Net to collect from other schedules | C19: =C17-C18 -> 10194890.67
B21: Revenue Spread Based on Current Allocation | C21: =SUM(D21:G21) -> 10228865.82 | D21: =$C$19*D15 -> 8272344.074 | E21: =$C$19*E15 -> 1848171.755 | F21: 74374.84639 | G21: =0.01*('Base Revenue'!F17*1000-291000) -> 33975.14546
B23: LIRAP Revenue Increase <Decrease> | C23: =SUM(D23:G23) -> 4648724.477 | D23: =D21-D11 -> 4286571.317 | E23: =E21-E11 -> 345965.9675 | F23: 20056.69933 | G23: =G21-G11 -> -3869.50656
B25: Proposed LIRAP Rates | D25: =D21/D7 -> 0.06079045964 | E25: =E21/E7 -> 0.03021629838 | F25: =F21/F7 -> 0.02952092026 | G25: =G21/G7 -> 0.001059348402
B27: Percentage Increase <Decrease> | D27: =D21/D11-1 -> 1.075468066 | E27: =E21/E11-1 -> 0.2303053087 | F27: 0.3692449101 | G27: =G21/G11-1 -> -0.1022471169
B29: Present Billed Revenue | C29: =SUM(D29:H29) -> 274078340 | D29: 208751061 | E29: 59624181 | F29: 862933 | G29: 3489738 | H29: 1350427
B31: Proposed Billed Revenue | C31: =SUM(D31:H31) -> 278727064.5 | D31: =D29+D23 -> 213037632.3 | E31: =E29+E23 -> 59970146.97 | F31: 882989.6993 | G31: =G29+G23 -> 3485868.493 | H31: 1350427
B33: Overall Billed Percentage Increase <Decrease> | C33: =C31/C29-1 -> 0.01696129828 | D33: =D31/D29-1 -> 0.02053436901 | E33: =E31/E29-1 -> 0.005802443936 | F33: =F31/F29-1 -> 0.02324247575 | G33: =G31/G29-1 -> -0.001108824376 | H33: 0
B36: Present LIRAP Revenue as a Percentage of Billed Revenue | C36: =C11/C29 -> 0.02035965828
A39: UG-220054 | B39: Revenue Conversion Factor | C39: ='Rev Conv Factor'!E22 -> 0.956282
B41: Proposed Net LIRAP Revenue | C41: =SUM(D41:H41) -> 9781680.264 | D41: =D21*$C$39 -> 7910693.736 | E41: =E21*$C$39 -> 1767373.382 | F41: 71123.32686 | G41: 32489.82005 | H41: 0
B43: Proposed LIRAP Revenue as a % of Billed Revenue | C43: =C21/C29 -> 0.03732095656
C45: Present | D45: Proposed | E45: $ Inc/(Dec) | F45: % Inc/(Dec)
B46: Average Monthly Bill @ 67 Therms | C46: =C52+(C53*C51) -> 96.78358 | D46: =C52+(C53*(C51+(ROUND(D25,5)-D9))) -> 98.89408 | E46: =D46-C46 -> 2.1105 | F46: =E46/C46 -> 0.02180638493
B49: Change in Schedule 192 Rate | D49: =D25-D9 -> 0.03150045964
B51: Present Rate (first 70 therms) | C51: 1.30274
B52: Basic Charge | C52: 9.5
B53: Average Customer Usage | C53: 67
E57: Change in Annual Revenue
D58: Rate Schedule | E58: ($) | F58: (%)
D59: Schedule 101/102 | E59: 4287000 | F59: 0.02
D60: Schedule 111/112 | E60: 346000 | F60: 0.006
D61: Schedule 131/132 | E61: 20000 | F61: 0.023
D62: Schedule 146 | E62: -4000 | F62: -0.001
D63: Total | E63: =SUM(E59:E62) -> 4649000 | F63: 0.017

Sheet LIRAP Balance
B1: 2023 | C1: 2023 | D1: 2023 | E1: 2023 | F1: 2023 | G1: 2023 | H1: 2024 | I1: 2024 | J1: 2024 | K1: 2024 | L1: 2024 | M1: 2024 | N1: 2024 | O1: 2024 | P1: 2024 | Q1: 2024 | R1: 2024 | S1: 2024 | T1: 2025 | U1: 2025 | V1: 2025 | W1: 2025 | X1: 2025 | Y1: 2025 | Z1: 2025 | AA1: 2025 | AB1: 2025 | AC1: 2025
B2: End July | C2: End August | D2: End September | E2: End October | F2: End November | G2: End December | H2: End January | I2: End February | J2: End March | K2: End April | L2: End May | M2: End June | N2: End July | O2: End August | P2: End September | Q2: End October | R2: End November | S2: End December | T2: End January | U2: End February | V2: End March | W2: End April | X2: End May | Y2: End June | Z2: End July | AA2: End August | AB2: End September | AC2: End October
A3: Expected elec tariff rider revenue | C3: =-'Revenue By Month'!D35 -> -111178.1058 | D3: =-'Revenue By Month'!E35 -> -161796.5055 | E3: =-'Revenue By Month'!F35 -> -394388.7658 | F3: =-'Revenue By Month'!G35 -> -1219425.327 | G3: =-'Revenue By Month'!H35 -> -1769896.71 | H3: =-'Revenue By Month'!I35 -> -1606157.99 | I3: =-'Revenue By Month'!J35 -> -1408388.016 | J3: =-'Revenue By Month'!K35 -> -1093476.893 | K3: =-'Revenue By Month'!L35 -> -698607.8459 | L3: =-'Revenue By Month'!M35 -> -385204.5012 | M3: =-'Revenue By Month'!N35 -> -253827.8609 | N3: =-'Revenue By Month'!O35 -> -191535.7199 | O3: =-'Revenue By Month'!P35 -> -201818.6587 | P3: =-'Revenue By Month'!Q35 -> -279470.3326 | Q3: =-'Revenue By Month'!R35 -> -673870.4089 | R3: =-'Revenue By Month'!S35 -> -1223507.8 | S3: =-'Revenue By Month'!T35 -> -1781941.807 | T3: =-'Revenue By Month'!U35 -> -1617365.016 | U3: =-'Revenue By Month'!V35 -> -1415757.066 | V3: =-'Revenue By Month'!W35 -> -1095182.78 | W3: =-'Revenue By Month'!X35 -> -708113.723 | X3: =-'Revenue By Month'!Y35 -> -384175.0528 | Y3: =-'Revenue By Month'!Z35 -> -252221.2174 | Z3: =-'Revenue By Month'!AA35 -> -195142.0844 | AA3: =-'Revenue By Month'!AB35 -> -197322.8044 | AB3: =-'Revenue By Month'!AC35 -> -271275.009 | AC3: =-'Revenue By Month'!AD35 -> -665893.1703
A4: Expected LIRAP Expense | C4: ='LIRAP Expense Summary'!$B$47 -> 221875 | D4: ='LIRAP Expense Summary'!$B$47 -> 221875 | E4: ='LIRAP Expense Summary'!$C$33/12 -> 688475.5601 | F4: ='LIRAP Expense Summary'!$C$33/12 -> 688475.5601 | G4: ='LIRAP Expense Summary'!$C$33/12 -> 688475.5601 | H4: ='LIRAP Expense Summary'!$C$33/12 -> 688475.5601 | I4: ='LIRAP Expense Summary'!$C$33/12 -> 688475.5601 | J4: ='LIRAP Expense Summary'!$C$33/12 -> 688475.5601 | K4: ='LIRAP Expense Summary'!$C$33/12 -> 688475.5601 | L4: ='LIRAP Expense Summary'!$C$33/12 -> 688475.5601 | M4: ='LIRAP Expense Summary'!$C$33/12 -> 688475.5601 | N4: ='LIRAP Expense Summary'!$C$33/12 -> 688475.5601 | O4: ='LIRAP Expense Summary'!$C$33/12 -> 688475.5601 | P4: ='LIRAP Expense Summary'!$C$33/12 -> 688475.5601 | Q4: ='LIRAP Expense Summary'!$D$33/12 -> 1136624.511 | R4: ='LIRAP Expense Summary'!$D$33/12 -> 1136624.511 | S4: ='LIRAP Expense Summary'!$D$33/12 -> 1136624.511 | T4: ='LIRAP Expense Summary'!$D$33/12 -> 1136624.511 | U4: ='LIRAP Expense Summary'!$D$33/12 -> 1136624.511 | V4: ='LIRAP Expense Summary'!$D$33/12 -> 1136624.511 | W4: ='LIRAP Expense Summary'!$D$33/12 -> 1136624.511 | X4: ='LIRAP Expense Summary'!$D$33/12 -> 1136624.511 | Y4: ='LIRAP Expense Summary'!$D$33/12 -> 1136624.511 | Z4: ='LIRAP Expense Summary'!$D$33/12 -> 1136624.511 | AA4: ='LIRAP Expense Summary'!$D$33/12 -> 1136624.511 | AB4: ='LIRAP Expense Summary'!$D$33/12 -> 1136624.511 | AC4: ='LIRAP Expense Summary'!$E$33/12 -> 1334490.654
A5: Net change in balance | C5: =C3+C4 -> 110696.8942 | D5: =D3+D4 -> 60078.49451 | E5: 294086.7943 | F5: -530949.7665 | G5: -1081421.15 | H5: -917682.4298 | I5: -719912.4563 | J5: -405001.333 | K5: -10132.28584 | L5: 303271.0589 | M5: 434647.6992 | N5: 496939.8402 | O5: 486656.9013 | P5: 409005.2275 | Q5: =Q3+Q4 -> 462754.1026 | R5: -86883.28865 | S5: -645317.296 | T5: -480740.5048 | U5: -279132.5544 | V5: 41441.73181 | W5: 428510.7885 | X5: 752449.4587 | Y5: 884403.2941 | Z5: 941482.4271 | AA5: 939301.7071 | AB5: 865349.5025 | AC5: =AC3+AC4 -> 668597.4836
A6: Accounting Adjustment
A7: Elec Tariff rider balance | B7: -3422500.34 | C7: =C5+C6+B7 -> -3311803.446 | D7: =D5+D6+C7 -> -3251724.951 | E7: =E5+E6+D7 -> -2957638.157 | F7: -3488587.923 | G7: -4570009.074 | H7: -5487691.504 | I7: -6207603.96 | J7: -6612605.293 | K7: -6622737.579 | L7: -6319466.52 | M7: -5884818.821 | N7: -5387878.981 | O7: -4901222.079 | P7: =O7+P5+P6 -> -4492216.852 | Q7: =P7+Q5+Q6 -> -4029462.749 | R7: =Q7+R5+R6 -> -4116346.038 | S7: -4761663.334 | T7: -5242403.839 | U7: -5521536.393 | V7: -5480094.661 | W7: -5051583.873 | X7: -4299134.414 | Y7: -3414731.12 | Z7: -2473248.693 | AA7: -1533946.986 | AB7: -668597.4836 | AC7: =AB7+AC5+AC6 -> -1.746229827e-09
A11: Forecasted End of October 2023 Balance | B11: =E7 -> -2957638.157 | C11: Overfunded "Rebate"
A12: November 2023 - October 2025 Expenditure Budget | B12: =SUM(F4:AC4) -> 22547215.95
A13: November 2023 - October 2025 Forecasted Revenue | B13: =SUM(F3:AC3) -> -19589577.79
B14: =SUM(B6:P6) -> 0
A15: Total Projected DSM Balance October 2025 | B15: =B11+B12+B14+B13 -> 0 | C15: (Overfunded)/Underfunded

Sheet LIRAP Expense Summary
A1: Washington LIRAP Spending Forecast
A2: Direct Service | C2: 23-24 PY (Existing Budget) | D2: 24-25 PY | E2: 25-26 PY | F2: 26-27 PY | H2: Arrearage Programs | I2: Oregon Actuals (Oct 22-May 23) | L2: Washington Forecast
A3: Customers | B3: 129500 | C3: 47915 | D3: 73815 | E3: 86765 | F3: 93240 | I3: Participants | J3: Avg. Benefit | L3: Participants | M3: Avg. Benefit | N3: Total Benefit
A4: Saturation Forecast | B4: 1 | C4: 0.37 | D4: 0.57 | E4: 0.67 | F4: 0.72 | H4: AFP | I4: 1086 | J4: 496 | L4: =L6*L7 -> 3080 | M4: =M6*J7 -> 711.9617225 | N4: =L4*M4 -> 2192842.105
A5: LIRAP Share Elec | B5: 1837570.976 | C5: 679901.2612 | D5: 1047415.457 | E5: 1231172.554 | F5: 1323051.103 | H5: AMP | I5: 491 | J5: 98 | L5: =L6*L8 -> 1400 | M5: =M6*J8 -> 140.6698565 | N5: =L5*M5 -> 196937.799
A6: LIRAP Share Gas | B6: 1079208.351 | C6: 399307.0899 | D6: 615148.7602 | E6: 723069.5953 | F6: 777030.0128 | H6: Avg Past Due | I6: 9629 | J6: 209 | L6: 28000 | M6: 300
A7: BD Elec | B7: 35341196.75 | C7: 13076242.8 | D7: 20144482.15 | E7: 23678601.83 | F7: 25445661.66 | H7: AFP % | I7: =I4/I6 -> 0.1127842974 | J7: =J4/J6 -> 2.373205742 | L7: 0.11 | M7: =M4/M6 -> 2.373205742
A8: BD Gas | B8: 20755940.95 | C8: 7679698.152 | D8: 11830886.34 | E8: 13906480.44 | F8: 14944277.48 | H8: AMP % | I8: =I5/I6 -> 0.05099179562 | J8: =J5/J6 -> 0.4688995215 | L8: 0.05 | M8: =M5/M6 -> 0.4688995215
A9: AFP Elec | B9: 1381490.526 | C9: 511151.4947 | D9: 787449.6 | E9: 925598.6526 | F9: 994673.1789
A10: AFP Gas | B10: 811351.5789 | C10: 300200.0842 | D10: 462470.4 | E10: 543605.5579 | F10: 584173.1368
A11: AMP Elec | B11: 124070.8134 | C11: 45906.20096 | D11: 70720.36364 | E11: 83127.44498 | F11: 89330.98565 | H11: Average Annual Bill | I11: Electric Only | J11: Dual Fuel | K11: Gas Only | L11: Overall
A12: AMP Gas | B12: 72866.98565 | C12: 26960.78469 | D12: 41534.18182 | E12: 48820.88038 | F12: 52464.22967 | H12: Electric | I12: 1248 | J12: 1032 | K12: 0 | L12: 1128
A13: Other DS Elec | B13: 2901325.378 | C13: 1073490.39 | D13: 1653755.466 | E13: 1943888.004 | F13: 2088954.272 | H13: Gas | I13: 0 | J13: 948 | K13: 888 | L13: 864
A14: Other DS Gas | B14: 1703953 | C14: 630462.61 | D14: 971253.21 | E14: 1141648.51 | F14: 1226846.16
A15: LIHEAP | B15: -6675000 | C15: -6000000 | D15: -6200000 | E15: -7000000 | F15: -7500000
A16: Direct Service Total | B16: =SUM(B5:B15) -> 59333975.32 | C16: =SUM(C5:C15) -> 18423320.87 | D16: =SUM(D5:D15) -> 31425115.93 | E16: =SUM(E5:E15) -> 37226013.46 | F16: =SUM(F5:F15) -> 40026462.23 | H16: Percent Electric | I16: 0.63
H17: Percent Gas | I17: 0.37
A18: Admin/Con-Ed/Outreach | B18: 1 | C18: 0.37 | D18: 0.57 | E18: 0.67 | F18: 0.72
A19: Agency Admin Elec | B19: 4033013.514 | C19: 1492215 | D19: 2298817.703 | E19: 2702119.054 | F19: 2903769.73 | H19: LIRAP Share | I19: WA Actuals (Oct 2018-Sept 22)
A20: Agency Admin Gas | B20: 2459386.486 | C20: 909973 | D20: 1401850.297 | E20: 1647788.946 | F20: 1770758.27 | I20: Participants | J20: Total Benefit | K20: Average Benefit
A21: Agency Con-Ed Elec | B21: 1026424.324 | C21: 379777 | D21: 585061.8649 | E21: 687704.2973 | F21: 739025.5135 | H21: 18-19 PY | I21: 10211 | J21: 2957944.14 | K21: =J21/I21 -> 289.6821212
A22: Agency Con-Ed Gas | B22: 626024.3243 | C22: 231629 | D22: 356833.8649 | E22: 419436.2973 | F22: 450737.5135 | H22: 19-20 PY | I22: 11996 | J22: 3528478.38 | K22: =J22/I22 -> 294.137911
A23: Admin/Con-Ed/Outreach Total | B23: =SUM(B19:B22) -> 8144848.649 | C23: =SUM(C19:C22) -> 3013594 | D23: =SUM(D19:D22) -> 4642563.73 | E23: =SUM(E19:E22) -> 5457048.595 | F23: =SUM(F19:F22) -> 5864291.027 | H23: 20-21 PY | I23: 7337 | J23: 2306538.34 | K23: 314.3707701
H24: 21-22 | I24: 8978 | J24: 2874156.45 | K24: 320.1332646
A25: LIRAP Total | B25: 74153823.96 | C25: 27436914.87 | D25: 42267679.66 | E25: 49683062.06 | F25: 53390753.25 | H25: Total | I25: =SUM(I21:I24) -> 38522 | J25: =SUM(J21:J24) -> 11667117.31 | K25: 302.8689401
A26: Avista Outreach Elec | B26: 63000 | C26: 441000 | D26: 315000 | E26: 157500 | F26: 157500 | H26: Avg | I26: =AVERAGE(I21:I24) -> 9630.5 | J26: =AVERAGE(J21:J24) -> 2916779.327 | K26: =J26/I26 -> 302.8689401
A27: Avista Outreach Gas | B27: 37000 | C27: 259000 | D27: 185000 | E27: 92500 | F27: 92500
A28: Avista Con-Ed Electric | B28: 197116.2162 | C28: 72933 | D28: 112356.2432 | E28: 132067.8649 | F28: 141923.6757
A29: Avista Con-Ed Gas | B29: 120205.4054 | C29: 44476 | D29: 68517.08108 | E29: 80537.62162 | F29: 86547.89189
A30: LIRAP Grand Total | B30: =SUM(B16, B23, B26:B29) -> 67896145.59 | C30: =SUM(C16, C23, C26:C29) -> 22254323.87 | D30: =SUM(D16, D23, D26:D29) -> 36748552.98 | E30: =SUM(E16, E23, E26:E29) -> 43145667.54 | F30: =SUM(F16, F23, F26:F29) -> 46369224.82
B32: Annual Electric (Oct - Sep) | C32: =C5+C7+C9+C11+C13+C19+C21+C26+C28+(C15*$I$16) -> 13992617.15 | D32: =D5+D7+D9+D11+D13+D19+D21+D26+D28+(D15*$I$16) -> 23109058.85 | E32: =E5+E7+E9+E11+E13+E19+E21+E26+E28+(E15*$I$16) -> 27131779.7 | F32: =F5+F7+F9+F11+F13+F19+F21+F26+F28+(F15*$I$16) -> 29158890.12
B33: Annual Natural Gas (Oct - Sep) | C33: =C6+C8+C10+C12+C14+C20+C22+C27+C29+(C15*$I$17) -> 8261706.721 | D33: =D6+D8+D10+D12+D14+D20+D22+D27+D29+(D15*$I$17) -> 13639494.14 | E33: =E6+E8+E10+E12+E14+E20+E22+E27+E29+(E15*$I$17) -> 16013887.85 | F33: =F6+F8+F10+F12+F14+F20+F22+F27+F29+(F15*$I$17) -> 17210334.7
C34: =C32+C33 -> 22254323.87 | D34: =D32+D33 -> 36748552.98 | E34: 43145667.54 | F34: 46369224.82
C35: =C34-C30 -> 0 | D35: =D34-D30 -> 0 | E35: 0 | F35: 0
A38: Estimated Total LIRAP Costs Aug-Sept 2023
A39: Direct Service Electric | B39: 882000
A40: Direct Service Gas | B40: 518000
A41: Admin Electric | B41: 465000
A42: Admin Gas | B42: 283500
A43: Con-Ed Electric | B43: 141000
A44: Con-Ed Gas | B44: 86000
A45: Total | B45: 2375500
A47: Monthly Gas | B47: =(B40+B42+B44)/4 -> 221875
A48: Monthly Electric | B48: =(B39+B41+B43)/4 -> 372000

Sheet Revenue By Month
A3: Forecasted Usage | D3: 2023-08-31 | E3: =EOMONTH(D3,1) -> 2023-09-30 | F3: 2023-10-31 | G3: 2023-11-30 | H3: 2023-12-31 | I3: 2024-01-31 | J3: 2024-02-29 | K3: 2024-03-31 | L3: 2024-04-30 | M3: 2024-05-31 | N3: 2024-06-30 | O3: 2024-07-31 | P3: 2024-08-31 | Q3: 2024-09-30 | R3: 2024-10-31 | S3: 2024-11-30 | T3: 2024-12-31 | U3: 2025-01-31 | V3: 2025-02-28 | W3: 2025-03-31 | X3: 2025-04-30 | Y3: 2025-05-31 | Z3: 2025-06-30 | AA3: 2025-07-31 | AB3: 2025-08-31 | AC3: 2025-09-30 | AD3: 2025-10-31 | AF3: 2022-2023 | AG3: 2023-2024
B4: Small Service Schedule 101 | D4: =D38 -> 2294937.431 | E4: 3580778.661 | F4: 9536348.054 | G4: 16896724.59 | H4: 25318761.38 | I4: 22936252.24 | J4: 20105498.73 | K4: 15455535.2 | L4: 9694274.396 | M4: 5183904.468 | N4: 3240671.915 | O4: 2340441.111 | P4: 2489737.256 | Q4: 3519545.252 | R4: 8898296.924 | S4: 16978003.42 | T4: 25540559.18 | U4: 23133721.34 | V4: 20236790.39 | W4: 15488448.23 | X4: 9859704.617 | Y4: 5172571.915 | Z4: 3218684.041 | AA4: 2406610.12 | AB4: =AB38 -> 2414744.463 | AC4: 3380515.041 | AD4: 8750149.329 | AF4: =SUM(D4:O4) -> 136584128.2 | AG4: =SUM(P4:AA4) -> 136942672.7
B5: Large Service Schedule 111 | D5: =D39+D40 -> 1811059.298 | E5: 2410383.673 | F5: 5097277.038 | G5: 7774200.731 | H5: 9866698.715 | I5: 9002635.065 | J5: 7900560.024 | K5: 6407192.021 | L5: 4392730.333 | M5: 2692002.078 | N5: 2078905.036 | O5: 1745092.451 | P5: 1807011.088 | Q5: 2398983.706 | R5: 5098719.498 | S5: 7750797.317 | T5: 9839437.175 | U5: 8992230.1 | V5: 7891540.622 | W5: 6399075.297 | X5: 4388737.569 | Y5: 2679862.754 | Z5: 2068584.371 | AA5: 1737584.849 | AB5: =AB39+AB40 -> 1802347.717 | AC5: 2395561.258 | AD5: 5118879.485 | AF5: =SUM(D5:O5) -> 61178736.46 | AG5: =SUM(P5:AA5) -> 61052564.34
B6: Interrupt Service Schedule 131 | D6: =D42 -> 99072.32022 | E6: 120887.6639 | F6: 249609.2691 | G6: 347671.4314 | H6: 347632.5896 | I6: 329887.8425 | J6: 276791.7525 | K6: 239018.4967 | L6: 179545.2488 | M6: 120676.2709 | N6: 105778.5552 | O6: 101513.6592 | P6: 99031.20604 | Q6: 120809.837 | R6: 251037.6863 | S6: 347386.904 | T6: 347694.449 | U6: 329844.5252 | V6: 276693.1709 | W6: 238783.7174 | X6: 179344.5427 | Y6: 120125.9496 | Z6: 105367.8242 | AA6: 101323.3431 | AB6: =AB42 -> 99099.96109 | AC6: 121230.9248 | AD6: 252717.0198 | AF6: 2518085.1 | AG6: 2517443.155
B7: Transport Service Schedule 146 | D7: 2056324 | E7: 2124517 | F7: 2142848 | G7: 2683302 | H7: 3090346 | I7: 3318946 | J7: 3450658 | K7: 3077573 | L7: 3015119 | M7: 2622375 | N7: 2351056 | O7: 2160373 | P7: 2046710 | Q7: 2111844 | R7: 2143437 | S7: 2724551 | T7: 3028501 | U7: 3348035 | V7: 3450753 | W7: 3110861 | X7: 3024980 | Y7: 2618081 | Z7: 2332683 | AA7: 2142684 | AB7: =AB43 -> 2043252 | AC7: 2086080 | AD7: 2148434
B8: Special Contract Transport | D8: 3274936 | E8: 3394097 | F8: 3472303 | G8: 4012777 | H8: 4389174 | I8: 4792623 | J8: 4825009 | K8: 4352849 | L8: 4317680 | M8: 3939169 | N8: 3656651 | O8: 3480246 | P8: 3310149 | Q8: 3431054 | R8: 3507041 | S8: 4047280 | T8: 4423023 | U8: 4826686 | V8: 4859504 | W8: 4387169 | X8: 4352013 | Y8: 3973337 | Z8: 3690791 | AA8: 3514441 | AB8: =AB44 -> 3344335 | AC8: 3465261 | AD8: 3541224
A9: Total Forecasted Usage | D9: =SUM(D4:D8) -> 9536329.049 | E9: 11630664 | F9: 20498385.36 | G9: 31714675.75 | H9: 43012612.68 | I9: 40380344.15 | J9: 36558517.5 | K9: 29532167.72 | L9: 21599348.98 | M9: 14558126.82 | N9: 11433062.51 | O9: 9827666.221 | P9: 9752638.55 | Q9: 11582236.79 | R9: 19898532.11 | S9: 31848018.64 | T9: 43179214.81 | U9: 40630516.96 | V9: 36715281.18 | W9: 29624337.25 | X9: 21804779.73 | Y9: 14563978.62 | Z9: 11416110.24 | AA9: 9902643.312 | AB9: =SUM(AB4:AB8) -> 9703779.141 | AC9: 11448648.22 | AD9: 19811403.83 | AF9: =SUM(AF4:AF8) -> 200280949.7 | AG9: =SUM(AG4:AG8) -> 200512680.2 | AH9: =(AG9-AF9)/AF9 -> 0.001157026909
AF10: ='[6]WA Gas - Sched 191'!C7 -> 200280949.7
A12: LIRAP Rates
B13: Small Service Schedule 101 | D13: ='WA Natural Gas - Sched 192'!D9 -> 0.02929 | E13: =D13 -> 0.02929 | F13: =E13 -> 0.02929 | G13: ='WA Natural Gas - Sched 192'!D25 -> 0.06079045964 | H13: =G13 -> 0.06079045964 | I13: =H13 -> 0.06079045964 | J13: 0.06079045964 | K13: 0.06079045964 | L13: 0.06079045964 | M13: 0.06079045964 | N13: 0.06079045964 | O13: 0.06079045964 | P13: 0.06079045964 | Q13: 0.06079045964 | R13: 0.06079045964 | S13: 0.06079045964 | T13: 0.06079045964 | U13: 0.06079045964 | V13: 0.06079045964 | W13: 0.06079045964 | X13: 0.06079045964 | Y13: 0.06079045964 | Z13: 0.06079045964 | AA13: 0.06079045964 | AB13: 0.06079045964 | AC13: 0.06079045964 | AD13: 0.06079045964
B14: Large Service Schedule 111 | D14: ='WA Natural Gas - Sched 192'!E9 -> 0.02456 | E14: =D14 -> 0.02456 | F14: =E14 -> 0.02456 | G14: ='WA Natural Gas - Sched 192'!E25 -> 0.03021629838 | H14: =G14 -> 0.03021629838 | I14: 0.03021629838 | J14: 0.03021629838 | K14: 0.03021629838 | L14: 0.03021629838 | M14: 0.03021629838 | N14: 0.03021629838 | O14: 0.03021629838 | P14: 0.03021629838 | Q14: 0.03021629838 | R14: 0.03021629838 | S14: 0.03021629838 | T14: 0.03021629838 | U14: 0.03021629838 | V14: 0.03021629838 | W14: 0.03021629838 | X14: 0.03021629838 | Y14: 0.03021629838 | Z14: 0.03021629838 | AA14: 0.03021629838 | AB14: 0.03021629838 | AC14: 0.03021629838 | AD14: 0.03021629838
B15: Interrupt Service Schedule 131 | D15: ='WA Natural Gas - Sched 192'!F9 -> 0.02156 | E15: =D15 -> 0.02156 | F15: =E15 -> 0.02156 | G15: ='WA Natural Gas - Sched 192'!F25 -> 0.02952092026 | H15: 0.02952092026 | I15: 0.02952092026 | J15: 0.02952092026 | K15: 0.02952092026 | L15: 0.02952092026 | M15: 0.02952092026 | N15: 0.02952092026 | O15: 0.02952092026 | P15: 0.02952092026 | Q15: 0.02952092026 | R15: 0.02952092026 | S15: 0.02952092026 | T15: 0.02952092026 | U15: 0.02952092026 | V15: 0.02952092026 | W15: 0.02952092026 | X15: 0.02952092026 | Y15: 0.02952092026 | Z15: 0.02952092026 | AA15: 0.02952092026 | AB15: 0.02952092026 | AC15: 0.02952092026 | AD15: 0.02952092026
B16: Transport Service Schedule 146 | D16: ='WA Natural Gas - Sched 192'!G9 -> 0.00118 | E16: =D16 -> 0.00118 | F16: =E16 -> 0.00118 | G16: ='WA Natural Gas - Sched 192'!G25 -> 0.001059348402 | H16: 0.001059348402 | I16: 0.001059348402 | J16: 0.001059348402 | K16: 0.001059348402 | L16: 0.001059348402 | M16: 0.001059348402 | N16: 0.001059348402 | O16: 0.001059348402 | P16: 0.001059348402 | Q16: 0.001059348402 | R16: 0.001059348402 | S16: 0.001059348402 | T16: 0.001059348402 | U16: 0.001059348402 | V16: 0.001059348402 | W16: 0.001059348402 | X16: 0.001059348402 | Y16: 0.001059348402 | Z16: 0.001059348402 | AA16: 0.001059348402 | AB16: 0.001059348402 | AC16: 0.001059348402 | AD16: 0.001059348402
B17: Special Contract Transport
B18: Total
A21: Gross LIRAP Revenue | D21: =D3 -> 2023-08-31 | E21: 2023-09-30 | F21: 2023-10-31 | G21: 2023-11-30 | H21: 2023-12-31 | I21: 2024-01-31 | J21: 2024-02-29 | K21: 2024-03-31 | L21: 2024-04-30 | M21: 2024-05-31 | N21: 2024-06-30 | O21: 2024-07-31 | P21: 2024-08-31 | Q21: 2024-09-30 | R21: 2024-10-31 | S21: 2024-11-30 | T21: 2024-12-31 | U21: 2025-01-31 | V21: 2025-02-28 | W21: 2025-03-31 | X21: 2025-04-30 | Y21: 2025-05-31 | Z21: 2025-06-30 | AA21: 2025-07-31 | AB21: =AB3 -> 2025-08-31 | AC21: 2025-09-30 | AD21: 2025-10-31
B22: Small Service Schedule 101 | D22: =D4*D13 -> 67218.71735 | E22: =E4*E13 -> 104881.007 | F22: 279319.6345 | G22: 1027159.654 | H22: 1539139.142 | I22: 1394305.316 | J22: 1222222.509 | K22: 939549.0887 | L22: 589319.3964 | M22: 315131.9354 | N22: 197001.9353 | O22: 142276.4909 | P22: 151352.2722 | Q22: 213954.7736 | R22: 540931.56 | S22: 1032100.632 | T22: 1552622.332 | U22: 1406309.553 | V22: 1230203.789 | W22: 941549.8874 | X22: 599375.9756 | Y22: 314443.0243 | Z22: 195665.2823 | AA22: 146298.9354 | AB22: =AB4*AB13 -> 146793.4258 | AC22: 205503.0632 | AD22: 531925.5996
B23: Large Service Schedule 111 | D23: =D5*D14 -> 44479.61636 | E23: 59199.023 | F23: 125189.124 | G23: 234907.569 | H23: 298135.1124 | I23: 272026.3074 | J23: 238725.6791 | K23: 193601.6259 | L23: 132732.0504 | M23: 81342.33803 | N23: 62816.81488 | O23: 52730.23419 | P23: 54601.18622 | Q23: 72488.40746 | R23: 154064.4297 | S23: 234200.4044 | T23: 297311.3696 | U23: 271711.9078 | V23: 238453.1461 | W23: 193356.3685 | X23: 132611.4039 | Y23: 80975.53259 | Z23: 62504.96257 | AA23: 52503.38225 | AB23: =AB5*AB14 -> 54460.27641 | AC23: 72384.99377 | AD23: 154673.5899
B24: Interrupt Service Schedule 131 | D24: 2135.999224 | E24: 2606.338035 | F24: 5381.575841 | G24: 10263.5806 | H24: 10262.43396 | I24: 9738.592695 | J24: 8171.147256 | K24: 7056.045981 | L24: 5300.340973 | M24: 3562.474571 | N24: 3122.680294 | O24: 2996.776638 | P24: 2923.492337 | Q24: 3566.417564 | R24: 7410.86352 | S24: 10255.18109 | T24: 10264.2601 | U24: 9737.313927 | V24: 8168.237037 | W24: 7049.115082 | X24: 5294.415945 | Y24: 3546.22858 | Z24: 3110.555136 | AA24: 2991.158334 | AB24: =AB6*AB15 -> 2925.522049 | AC24: 3578.848464 | AD24: 7460.43899
B25: Transport Service Schedule 146 | D25: 2426.46232 | E25: 2506.93006 | F25: 2528.56064 | G25: 2842.551686 | H25: 3273.753097 | I25: 3515.920142 | J25: 3655.449038 | K25: 3260.22204 | L25: 3194.061495 | M25: 2778.008766 | N25: 2490.587417 | O25: 2288.587685 | P25: 2168.178968 | Q25: 2237.178567 | R25: 2270.646561 | S25: 2886.248748 | T25: 3208.237695 | U25: 3546.735527 | V25: 3655.549676 | W25: 3295.485629 | X25: 3204.507729 | Y25: 2773.459924 | Z25: 2471.124008 | AA25: 2269.848871 | AB25: 2164.515741 | AC25: 2209.885515 | AD25: 2275.940125
B26: Special Contract Transport
B27: Total | D27: =SUM(D22:D26) -> 116260.7953 | E27: 169193.2981 | F27: 412418.895 | G27: 1275173.355 | H27: 1850810.441 | I27: 1679586.137 | J27: 1472774.784 | K27: 1143466.983 | L27: 730545.8493 | M27: 402814.7567 | N27: 265432.0179 | O27: 200292.0894 | P27: 211045.1297 | Q27: 292246.7772 | R27: 704677.4998 | S27: 1279442.466 | T27: 1863406.2 | U27: 1691305.511 | V27: 1480480.722 | W27: 1145250.857 | X27: 740486.3032 | Y27: 401738.2454 | Z27: 263751.924 | AA27: 204063.3248 | AB27: =SUM(AB22:AB26) -> 206343.74 | AC27: 283676.7909 | AD27: 696335.5686
A29: Net LIRAP Revenue | C29: ='Rev Conv Factor'!E22 -> 0.956282 | D29: =D21 -> 2023-08-31 | E29: 2023-09-30 | F29: 2023-10-31 | G29: 2023-11-30 | H29: 2023-12-31 | I29: 2024-01-31 | J29: 2024-02-29 | K29: 2024-03-31 | L29: 2024-04-30 | M29: 2024-05-31 | N29: 2024-06-30 | O29: 2024-07-31 | P29: 2024-08-31 | Q29: 2024-09-30 | R29: 2024-10-31 | S29: 2024-11-30 | T29: 2024-12-31 | U29: 2025-01-31 | V29: 2025-02-28 | W29: 2025-03-31 | X29: 2025-04-30 | Y29: 2025-05-31 | Z29: 2025-06-30 | AA29: 2025-07-31 | AB29: =AB21 -> 2025-08-31 | AC29: 2025-09-30 | AD29: 2025-10-31
B30: Small Service Schedule 101 | D30: =D22*$C$29 -> 64280.04947 | E30: 100295.8191 | F30: 267108.3387 | G30: 982254.2883 | H30: 1471851.057 | I30: 1333349.077 | J30: 1168789.385 | K30: 898473.8817 | L30: 563555.5311 | M30: 301354.9974 | N30: =N22*$C$29 -> 188389.4047 | O30: =O22*$C$29 -> 136056.4473 | P30: =P22*$C$29 -> 144735.4535 | Q30: 204601.0988 | R30: 517283.1141 | S30: 986979.2561 | T30: 1484744.789 | U30: 1344828.512 | V30: 1176421.74 | W30: 900387.2094 | X30: 573172.4567 | Y30: 300696.2041 | Z30: 187111.1875 | AA30: 139903.0385 | AB30: =AB22*$C$29 -> 140375.9108 | AC30: 196518.8803 | AD30: 508670.8763
B31: Large Service Schedule 111 | D31: =D23*$C$29 -> 42535.05649 | E31: 56610.96012 | F31: 119716.1059 | G31: 224637.8799 | H31: 285101.2416 | I31: 260133.8613 | J31: 228289.0698 | K31: 185137.75 | L31: 126929.2707 | M31: =M23*$C$29 -> 77786.2137 | N31: 60070.58937 | O31: 50424.97381 | P31: 52214.13156 | Q31: 69319.35926 | R31: 147329.041 | S31: 223961.6311 | T31: 284313.5111 | U31: 259833.2066 | V31: 228028.4515 | W31: 184903.2148 | X31: 126813.8985 | Y31: 77435.44426 | Z31: 59772.37062 | AA31: 50208.03938 | AB31: =AB23*$C$29 -> 52079.38205 | AC31: 69220.46661 | AD31: 147911.5699
B32: Interrupt Service Schedule 131 | D32: 2042.61761 | E32: 2492.394148 | F32: 5146.304109 | G32: 9814.877387 | H32: 9813.780869 | I32: 9312.8409 | J32: 7813.92104 | K32: 6747.569763 | L32: 5068.620667 | M32: =M24*$C$29 -> 3406.730308 | N32: 2986.162957 | O32: 2865.763557 | P32: 2795.683099 | Q32: 3410.500921 | R32: 7086.875389 | S32: 9806.845085 | T32: 9815.527181 | U32: 9311.618037 | V32: 7811.13805 | W32: 6740.941869 | X32: 5062.954668 | Y32: 3391.194559 | Z32: 2974.567886 | AA32: 2860.390874 | AB32: =AB24*$C$29 -> 2797.624076 | AC32: 3422.388367 | AD32: 7134.283518
B33: Transport Service Schedule 146 | D33: 2320.38224 | E33: 2397.332092 | F33: 2418.017026 | G33: 2718.281011 | H33: 3130.631159 | I33: 3362.211145 | J33: 3495.640117 | K33: 3117.691653 | L33: 3054.423514 | M33: =M25*$C$29 -> 2656.559779 | N33: 2381.703916 | O33: 2188.535209 | P33: 2073.39052 | Q33: 2139.373594 | R33: 2171.378434 | S33: 2760.067725 | T33: 3067.979959 | U33: 3391.679343 | V33: 3495.736356 | W33: 3151.413589 | X33: 3064.41306 | Y33: 2652.209803 | Z33: 2363.091409 | AA33: 2170.615618 | AB33: 2069.887442 | AC33: 2113.27374 | AD33: 2176.440574
B34: Special Contract Transport
B35: Total | D35: =SUM(D30:D34) -> 111178.1058 | E35: 161796.5055 | F35: 394388.7658 | G35: 1219425.327 | H35: 1769896.71 | I35: 1606157.99 | J35: 1408388.016 | K35: 1093476.893 | L35: 698607.8459 | M35: 385204.5012 | N35: 253827.8609 | O35: 191535.7199 | P35: 201818.6587 | Q35: 279470.3326 | R35: 673870.4089 | S35: 1223507.8 | T35: 1781941.807 | U35: 1617365.016 | V35: 1415757.066 | W35: 1095182.78 | X35: 708113.723 | Y35: 384175.0528 | Z35: 252221.2174 | AA35: 195142.0844 | AB35: =SUM(AB30:AB34) -> 197322.8044 | AC35: 271275.009 | AD35: 665893.1703 | AF35: =SUM(D35:O35) -> 9293884.241 | AG35: =AF35+SUM('[6]DSM Balance'!G3:Y3) -> -880939.8449
B38: WA101 | D38: 2294937.431 | E38: 3580778.661 | F38: 9536348.054 | G38: 16896724.59 | H38: 25318761.38 | I38: 22936252.24 | J38: 20105498.73 | K38: 15455535.2 | L38: 9694274.396 | M38: 5183904.468 | N38: 3240671.915 | O38: 2340441.111 | P38: 2489737.256 | Q38: 3519545.252 | R38: 8898296.924 | S38: 16978003.42 | T38: 25540559.18 | U38: 23133721.34 | V38: 20236790.39 | W38: 15488448.23 | X38: 9859704.617 | Y38: 5172571.915 | Z38: 3218684.041 | AA38: 2406610.12 | AB38: 2414744.463 | AC38: 3380515.041 | AD38: 8750149.329
B39: WA111 | D39: 1788424.433 | E39: 2383581.073 | F39: 5048195.059 | G39: 7705945.566 | H39: 9797127.952 | I39: 8938966.399 | J39: 7838869.978 | K39: 6354425.097 | L39: 4350960.967 | M39: 2662882.137 | N39: 2053543.314 | O39: 1722905.728 | P39: 1784385.616 | Q39: 2372198.361 | R39: 5049356.642 | S39: 7682598.011 | T39: 9769854.032 | U39: 8928569.794 | V39: 7829872.547 | W39: 6346360.204 | X39: 4347014.895 | Y39: 2650875.609 | Z39: 2043321.127 | AA39: 1715439.721 | AB39: 1779706.537 | AC39: 2368682.552 | AD39: 5069186.413
B40: WA112 | D40: 22634.86519 | E40: 26802.60008 | F40: 49081.97805 | G40: 68255.16453 | H40: 69570.76351 | I40: 63668.66682 | J40: 61690.04603 | K40: 52766.9237 | L40: 41769.36552 | M40: 29119.94087 | N40: 25361.72195 | O40: 22186.7224 | P40: 22625.47191 | Q40: 26785.34468 | R40: 49362.85521 | S40: 68199.30585 | T40: 69583.14327 | U40: 63660.30654 | V40: 61668.07463 | W40: 52715.09265 | X40: 41722.6733 | Y40: 28987.14489 | Z40: 25263.24408 | AA40: 22145.12713 | AB40: 22641.18024 | AC40: 26878.70613 | AD40: 49693.07135
B41: WA121 -Discontinued | D41: 0 | E41: 0 | F41: 0 | G41: 0 | H41: 0 | I41: 0 | J41: 0 | K41: 0 | L41: 0 | M41: 0 | N41: 0 | O41: 0 | P41: 0 | Q41: 0 | R41: 0 | S41: 0 | T41: 0 | U41: 0 | V41: 0 | W41: 0 | X41: 0 | Y41: 0 | Z41: 0 | AA41: 0 | AB41: 0 | AC41: 0 | AD41: 0
B42: WA132 | D42: 99072.32022 | E42: 120887.6639 | F42: 249609.2691 | G42: 347671.4314 | H42: 347632.5896 | I42: 329887.8425 | J42: 276791.7525 | K42: 239018.4967 | L42: 179545.2488 | M42: 120676.2709 | N42: 105778.5552 | O42: 101513.6592 | P42: 99031.20604 | Q42: 120809.837 | R42: 251037.6863 | S42: 347386.904 | T42: 347694.449 | U42: 329844.5252 | V42: 276693.1709 | W42: 238783.7174 | X42: 179344.5427 | Y42: 120125.9496 | Z42: 105367.8242 | AA42: 101323.3431 | AB42: 99099.96109 | AC42: 121230.9248 | AD42: 252717.0198
B43: WA146 | D43: 2056324 | E43: 2124517 | F43: 2142848 | G43: 2683302 | H43: 3090346 | I43: 3318946 | J43: 3450658 | K43: 3077573 | L43: 3015119 | M43: 2622375 | N43: 2351056 | O43: 2160373 | P43: 2046710 | Q43: 2111844 | R43: 2143437 | S43: 2724551 | T43: 3028501 | U43: 3348035 | V43: 3450753 | W43: 3110861 | X43: 3024980 | Y43: 2618081 | Z43: 2332683 | AA43: 2142684 | AB43: 2043252 | AC43: 2086080 | AD43: 2148434
B44: WA148 | D44: 3274936 | E44: 3394097 | F44: 3472303 | G44: 4012777 | H44: 4389174 | I44: 4792623 | J44: 4825009 | K44: 4352849 | L44: 4317680 | M44: 3939169 | N44: 3656651 | O44: 3480246 | P44: 3310149 | Q44: 3431054 | R44: 3507041 | S44: 4047280 | T44: 4423023 | U44: 4826686 | V44: 4859504 | W44: 4387169 | X44: 4352013 | Y44: 3973337 | Z44: 3690791 | AA44: 3514441 | AB44: 3344335 | AC44: 3465261 | AD44: 3541224
D47: =SUM(D38:D44)-D9 -> 0 | E47: 0 | F47: 0 | G47: 0 | H47: 0 | I47: 0 | J47: 0 | K47: 0 | L47: 0 | M47: 0 | N47: 0 | O47: 0 | P47: 0 | Q47: 0 | R47: 0 | S47: 0 | T47: 0 | U47: 0 | V47: 0 | W47: 0 | X47: 0 | Y47: 0 | Z47: 0 | AA47: 0 | AB47: =SUM(AB38:AB44)-AB9 -> 0 | AC47: 0 | AD47: 0

Sheet Rev Conv Factor
A1: AVISTA UTILITIES
A2: REVENUE CONVERSION FACTOR
A3: WASHINGTON NATURAL GAS
A4: TWELVE MONTHS ENDED SEPTEMBER 30, 2021
A6: Line
A7: No. | C7: Description | E7: Factor
A9: 1 | C9: Revenues | E9: 1
C11: Expense:
A12: 2 | C12: Uncollectibles | E12: 0.003326
A14: 3 | C14: Commission Fees | E14: 0.002
A16: 4 | C16: Washington Excise Tax | E16: 0.038392
A18: 5 | C18: Franchise Fees | E18: 0
A20: 6 | C20: Total Expense | E20: =E12+E14+E16+E18 -> 0.043718
A22: 7 | C22: Net Operating Income Before FIT | E22: =E9-E20 -> 0.956282
A24: 8 | C24: Federal Income Tax @ 21% | E24: 0.20081922
A26: 9 | C26: REVENUE CONVERSION FACTOR | E26: =E22-E24 -> 0.75546278
A29: Source: UG-220054

Sheet Base Revenue
A1: AVISTA UTILITIES
A2: WASHINGTON NATURAL GAS
A3: PROPOSED INCREASE BY SERVICE SCHEDULE
A4: 12 MONTHS ENDED SEPTEMBER 30, 2021
A5: (000s of Dollars)
D8: Base Tariff | F8: Base Tariff | G8: Base | H8: Total Billed | L8: Percent
D9: Distribution Revenue | E9: Final | F9: Distribution Revenue | G9: Tariff | H9: Revenue | I9: Final | J9: Sch. 192 | K9: Sch. 178 | L9: Increase
A10: Line | B10: Type of | C10: Schedule | D10: Under Present | E10: General | F10: Under Proposed | G10: Percent | H10: at Present | I10: General | J10: LIRAP | K10: Tax Credit | L10: on Billed
A11: No. | B11: Service | C11: Number | D11: Rates | E11: Increase | F11: Rates | G11: Increase | H11: Rates (1) | I11: Increase | J11: Increase | K11: Decrease | L11: Revenue
B12: (a) | C12: (b) | D12: (c) | E12: (d) | F12: (e) | G12: (f) | H12: (g) | I12: (h) | K12: (I) | L12: (j)
A14: 1 | B14: General Service | C14: 101/102 | D14: 89621.22559 | E14: 5930.95236 | F14: 95552.17795 | G14: 0.06617798765 | H14: 139159.2974 | I14: 5930.95236 | J14: 0 | K14: -4927.049177 | L14: 0.007214057572
A15: 2 | B15: Large General Service | C15: 111/112/116 | D15: 20022.85926 | E15: 1324.99992 | F15: 21347.85918 | G15: 0.06617436115 | H15: 43152.72195 | I15: 1324.99992 | J15: 0 | K15: -1100.784012 | L15: 0.005195869421
A16: 3 | B16: Interruptible Service | C16: 131/132 | D16: 224.70907 | E16: 14.77078 | F16: 239.67985 | G16: 0.06573290522 | H16: 527.50024 | I16: 14.77078 | J16: 0 | K16: -12.35368777 | L16: 0.004582163284
A17: 4 | B17: Transportation Service | C17: 146 | D17: 3459.652709 | E17: 228.8618375 | F17: 3688.514546 | G17: 0.0661516796 | H17: 3224.989898 | I17: 228.8618375 | J17: 0 | K17: -190.1991288 | L17: 0.01198847436
A18: 5 | B18: Special Contracts | C18: 148 | D18: 1530.90434 | E18: 0 | F18: 1530.90434 | G18: 0 | H18: 1530.90434 | I18: 0 | J18: 0 | K18: 0 | L18: 0
A19: 6 | B19: Total | D19: 114859.551 | E19: 7499.784897 | F19: 122359.5359 | G19: 0.06529526569 | H19: 187595.8139 | I19: 7499.584897 | J19: 0 | K19: -6230.386005 | L19: 0.006765603489
D20: 0 | F20: 0 | K20: 0
A21: (1) Includes Schedule 150 (Purchase Gas Cost Adjustment), Schedule 155 (Gas Rate Adjustment), Schedule 175 (Decoupling), Schedule 176 (Tax Credit)
A22: Schedule 191 (DSM Adjustment), and Schedule 192 (LIRAP Adjustment).
